fUST/lending_fUST_20240424
["ID","MTS","AMOUNT","RATE_DAILY","PERIOD"]
[323370390,1713935445523,-500.0,0.00017808,2]
[323370391,1713935445533,-504.45,0.00017808,2]
[323370392,1713935445543,-3154.71,0.00017808,2]
[323370393,1713935445552,-500.0,0.00017808,2]
[323370394,1713935445561,-4501.59,0.00017808,2]
[323370395,1713935445570,-500.0,0.00017808,2]
[323370396,1713935445579,-500.0,0.00017808,2]
[323370397,1713935445588,-1336.09,0.00017808,2]
[323370398,1713935445597,-500.0,0.00017808,2]
[323370399,1713935445606,-560.85,0.00017808,2]
[323370400,1713935445616,-798.31,0.00017808,2]
[323370401,1713935445625,-608.62,0.00017808,2]
[323370402,1713935445634,-1237.7,0.00017808,2]
[323370403,1713935445643,-1074.61,0.00017808,2]
[323370404,1713935445652,-500.0,0.00017808,2]
[323370405,1713935445661,-588.55,0.00017808,2]
[323370406,1713935445671,-2094.64,0.00017808,2]
[323370407,1713935445680,-699.38,0.00017808,2]
[323370408,1713935445689,-1620.5,0.00017808,2]
[323370409,1713935445698,-802.81,0.00017808,2]
[323370410,1713935445708,-500.0,0.00017808,2]
[323370411,1713935445719,-656.61,0.00017808,2]
[323370412,1713935445728,-576.65,0.00017808,2]
[323370413,1713935445737,-500.0,0.00017808,2]
[323370414,1713935445747,-14169.9,0.00017808,2]
[323370415,1713935445757,-2161.53,0.00017808,2]
[323370416,1713935445767,-575.25,0.00017808,2]
[323370417,1713935445776,-500.0,0.00017808,2]
[323370418,1713935445786,-556.25,0.00017808,2]
[323370419,1713935445795,-745.7,0.00017808,2]
[323370420,1713935445805,-500.0,0.00017808,2]
[323370421,1713935445814,-1046.94,0.00017808,2]
[323370422,1713935445823,-500.0,0.00017808,2]
[323370423,1713935445833,-12331.76,0.00017808,2]
[323370424,1713935445842,-883.27,0.00017808,2]
[323370425,1713935445851,-500.0,0.00017808,2]
[323370426,1713935445860,-500.0,0.00017808,2]
[323370427,1713935445869,-20197.27,0.00017808,2]
[323370428,1713935445878,-587.0,0.00017821,2]
[323370429,1713935445888,-420.0,0.00017856,2]
[323370430,1713935445898,-153.0,0.00017993,2]
[323370431,1713935445907,-153.0,0.00017993,2]
[323370432,1713935445916,-153.0,0.00017993,2]
[323370433,1713935445925,-240.6875281,0.00017998,2]
[323370434,1713935445935,-294397.52027127,0.00018,2]
[323370435,1713935445982,-571.15295988,0.00018,2]
[323370436,1713935446276,-6079.95961946,0.00018,2]
[323370464,1713935448216,-500.0,0.00016438,2]
[323370465,1713935448229,-2379.16,0.00016438,2]
[323370466,1713935448238,-500.0,0.00016438,2]
[323370467,1713935448248,-500.0,0.00016712,2]
[323370468,1713935448257,-2379.16,0.00016712,2]
[323370470,1713935448267,-446.68,0.00016986,2]
[323370471,1713935448278,-53.32,0.00016986,2]
[323370472,1713935448287,-2379.16,0.00016986,2]
[323370473,1713935448298,-203.583665,0.00017,2]
[323370474,1713935448307,-247.41195754,0.0001726,2]
[323370475,1713935448316,-15033.85411144,0.00018,2]
[323370476,1713935448326,-155.13452116,0.00018,2]
[323370477,1713935448336,-156.98390453,0.00018,2]
[323370478,1713935448345,-6497.50201308,0.00018,2]
[323370479,1713935448356,-1088.8947663,0.00018,2]
[323370480,1713935448366,-3131.74229205,0.00018,7]
[323370481,1713935448375,-638.01106262,0.00018,2]
[323370482,1713935448385,-306.0,0.00018008,2]
[323370483,1713935448395,-500.0,0.00018082,2]
[323370484,1713935448404,-923.86,0.00018082,2]
[323370485,1713935448415,-1694.19,0.00018082,2]
[323370486,1713935448425,-500.0,0.00018082,2]
[323370487,1713935448435,-621.02,0.00018082,2]
[323370488,1713935448446,-589.94,0.00018082,2]
[323370489,1713935448486,-500.0,0.00018082,2]
[323370490,1713935448495,-500.0,0.00018082,2]
[323370491,1713935448506,-500.0,0.00018082,2]
[323370492,1713935448516,-500.0,0.00018082,2]
[323370493,1713935448525,-500.0,0.00018082,2]
[323370494,1713935448535,-500.0,0.00018082,2]
[323370495,1713935448544,-596.73,0.00018082,2]
[323370496,1713935448553,-500.0,0.00018082,2]
[323370497,1713935448562,-500.0,0.00018082,2]
[323370498,1713935448571,-170.55654774,0.00018082,2]
[323370499,1713935448580,-500.0,0.00018082,2]
[323370500,1713935448590,-500.0,0.00018082,2]
[323370501,1713935448599,-500.0,0.00018082,2]
[323370502,1713935448608,-500.0,0.00018082,2]
[323370503,1713935448617,-500.0,0.00018082,2]
[323370504,1713935448626,-1036.52,0.00018082,2]
[323370505,1713935448635,-671.94,0.00018082,2]
[323370506,1713935448644,-500.0,0.00018082,2]
[323370507,1713935448653,-751.87,0.00018082,2]
[323370508,1713935448662,-1218.58,0.00018082,2]
[323370509,1713935448671,-500.0,0.00018082,2]
[323370510,1713935448680,-500.0,0.00018082,2]
[323370511,1713935448689,-500.0,0.00018082,2]
[323370512,1713935448698,-1479.58,0.00018082,2]
[323370513,1713935448707,-1952.31,0.00018082,2]
[323370514,1713935448718,-1102.42,0.00018082,2]
[323370515,1713935448727,-500.0,0.00018082,2]
[323370516,1713935448736,-500.0,0.00018082,2]
[323370517,1713935448745,-510.84,0.00018082,2]
[323370518,1713935448754,-881.19,0.00018082,2]
[323370519,1713935448763,-500.0,0.00018082,2]
[323370520,1713935448773,-500.0,0.00018082,2]
[323370521,1713935448782,-500.0,0.00018082,2]
[323370522,1713935448791,-911.45,0.00018082,2]
[323370523,1713935448799,-883.14,0.00018082,2]
[323370524,1713935448809,-500.0,0.00018082,2]
[323370525,1713935448817,-605.94,0.00018082,2]
[323370526,1713935448827,-500.0,0.00018082,2]
[323370527,1713935448835,-1958.73,0.00018082,2]
[323370528,1713935448973,-500.0,0.00018082,2]
[323370529,1713935448983,-553.93,0.00018082,2]
[323370530,1713935448992,-500.0,0.00018082,2]
[323370531,1713935449001,-500.0,0.00018082,2]
[323370532,1713935449010,-500.0,0.00018082,2]
[323370533,1713935449019,-586.01,0.00018082,2]
[323370534,1713935449028,-1763.73,0.00018082,2]
[323370535,1713935449037,-500.0,0.00018082,2]
[323370536,1713935449046,-503.21971525,0.00018082,2]
[323370537,1713935449055,-500.0,0.00018082,2]
[323370538,1713935449063,-1561.93,0.00018082,2]
[323370539,1713935449073,-500.0,0.00018082,2]
[323370540,1713935449082,-500.0,0.00018082,2]
[323370541,1713935449091,-500.0,0.00018082,2]
[323370542,1713935449100,-576.29,0.00018082,2]
[323370543,1713935449109,-500.0,0.00018082,2]
[323370544,1713935449118,-500.0,0.00018082,2]
[323370545,1713935449127,-500.0,0.00018082,2]
[323370546,1713935449136,-500.0,0.00018082,2]
[323370547,1713935449145,-987.19,0.00018082,2]
[323370548,1713935449154,-561.7,0.00018082,2]
[323370549,1713935449163,-500.0,0.00018082,2]
[323370550,1713935449172,-959.71,0.00018082,2]
[323370551,1713935449181,-500.0,0.00018082,2]
[323370552,1713935449190,-500.0,0.00018082,2]
[323370553,1713935449199,-500.0,0.00018082,2]
[323370554,1713935449209,-500.0,0.00018082,2]
[323370555,1713935449233,-579.63,0.00018082,2]
[323370556,1713935449242,-940.83,0.00018082,2]
[323370557,1713935449251,-682.95,0.00018082,2]
[323370558,1713935449261,-500.0,0.00018082,2]
[323370559,1713935449273,-500.0,0.00018082,2]
[323370560,1713935449282,-500.0,0.00018082,2]
[323370561,1713935449291,-500.0,0.00018082,2]
[323370562,1713935449302,-786.47,0.00018082,2]
[323370563,1713935449311,-428.57890763,0.00018082,2]
[323370564,1713935449322,-500.0,0.00018082,2]
[323370565,1713935449331,-2445.93,0.00018082,2]
[323370566,1713935449341,-1110.13,0.00018082,2]
[323370567,1713935449350,-500.0,0.00018082,2]
[323370568,1713935449360,-500.0,0.00018082,2]
[323370569,1713935449371,-825.43,0.00018082,2]
[323370570,1713935449380,-567.11,0.00018082,2]
[323370571,1713935449390,-500.0,0.00018082,2]
[323370572,1713935449400,-500.0,0.00018082,2]
[323370573,1713935449409,-500.0,0.00018082,2]
[323370574,1713935449419,-569.56,0.00018082,2]
[323370575,1713935449429,-500.0,0.00018082,2]
[323370576,1713935449439,-500.0,0.00018082,2]
[323370577,1713935449448,-1808.61,0.00018082,2]
[323370578,1713935449458,-1616.98,0.00018082,2]
[323370579,1713935449469,-500.0,0.00018082,2]
[323370580,1713935449479,-500.0,0.00018082,2]
[323370581,1713935449489,-500.0,0.00018082,2]
[323370582,1713935449498,-500.0,0.00018082,2]
[323370583,1713935449508,-500.0,0.00018082,2]
[323370584,1713935449518,-500.0,0.00018082,2]
[323370585,1713935449527,-1123.08,0.00018082,2]
[323370586,1713935449537,-2249.05,0.00018082,2]
[323370587,1713935449547,-1327.5,0.00018082,2]
[323370588,1713935449557,-1674.12,0.00018082,2]
[323370589,1713935449566,-2056.7,0.00018082,2]
[323370590,1713935449576,-500.0,0.00018082,2]
[323370591,1713935449586,-1624.86,0.00018082,2]
[323370592,1713935449595,-8519.54,0.00018082,2]
[323370593,1713935449605,-500.0,0.00018082,2]
[323370594,1713935449614,-810.89,0.00018082,2]
[323370595,1713935449624,-1248.8,0.00018082,2]
[323370596,1713935449633,-1015.49,0.00018082,2]
[323370597,1713935449643,-1101.25,0.00018082,2]
[323370598,1713935449653,-759.56,0.00018082,2]
[323370599,1713935449663,-312.975775,0.00018082,2]
[323370600,1713935449674,-181.522679,0.00018082,2]
[323370601,1713935449685,-500.0,0.00018082,2]
[323370602,1713935449695,-312.975775,0.00018082,2]
[323370603,1713935449705,-500.0,0.00018082,2]
[323370604,1713935449715,-181.522679,0.00018082,2]
[323370605,1713935449724,-598.86386767,0.00018082,2]
[323370606,1713935457658,221.89226198,0.00015,2]
[323370607,1713935460661,300.0,0.00014728,2]
[323370608,1713935461293,420.0,0.00016201,2]
[323370609,1713935475574,191.66145221,0.00015,2]
[323370612,1713935498655,3561.44628581,0.00016337,2]
[323370613,1713935522742,-300.0,0.00016336,2]
[323370615,1713935864952,20499.10604649,0.00025,30]
[323370616,1713935879701,238.93971122,0.00025,30]
[323370625,1713936443998,-1000.0,0.00028249,30]
[323370626,1713936444021,-1000.0,0.00028249,30]
[323370627,1713936444045,-1000.0,0.00028249,60]
[323370628,1713936444067,-1000.0,0.00028249,60]
[323370629,1713936444090,-1000.0,0.00028249,90]
[323370630,1713936444112,-1000.0,0.00028249,90]
[323370631,1713936444135,-1000.0,0.00028249,120]
[323370632,1713936444157,-1000.0,0.00028249,120]
[323370633,1713936444180,-177.75,0.00028249,30]
[323370634,1713936444202,-567.03131247,0.00028249,30]
[323370635,1713936444225,-1273.29393794,0.00028249,120]
[323370636,1713936444247,-504.40360671,0.00028249,30]
[323370637,1713936444270,-150.09738621,0.00028249,30]
[323370638,1713936444292,-1000.0,0.00028249,30]
[323370639,1713936444314,-213.44199491,0.00028249,120]
[323370640,1713936444336,-196.38356939,0.00028249,120]
[323370641,1713936444358,-150.83560795,0.00028249,120]
[323370642,1713936444380,-593.93823995,0.00028249,120]
[323370643,1713936444403,-326.64179103,0.00028249,120]
[323370644,1713936444427,-1158.02743007,0.00028249,30]
[323370645,1713936444449,-968.96751337,0.00028249,120]
[323370646,1713936444472,-383.41810519,0.00028249,120]
[323370647,1713936444494,-162.13491535,0.00028249,120]
[323370648,1713936444515,-152.86945292,0.00028249,30]
[323370649,1713936444543,-510.66520202,0.00028249,30]
[323370650,1713936444782,-202.30842167,0.00028249,30]
[323370651,1713936444805,-1008.63268274,0.00028249,120]
[323370652,1713936444828,-1000.0,0.00028249,60]
[323370653,1713936444849,-1000.0,0.00028249,30]
[323370654,1713936444872,-380299.15883011,0.00028249,120]
[323370887,1713936456232,-40581.70271637,0.00028249,120]
[323370888,1713936456253,-502.1,0.00028249,30]
[323370889,1713936456273,-502.099999,0.00028249,30]
[323370890,1713936456292,-502.099999,0.00028249,60]
[323370891,1713936456316,-502.099999,0.00028249,90]
[323370892,1713936456338,-502.099999,0.00028249,120]
[323370893,1713936456361,-493.6296654,0.00028249,30]
[323370894,1713936456384,-2000.0,0.00028249,120]
[323370895,1713936456406,-3891.54738601,0.00028249,60]
[323370896,1713936456429,-2859.01987007,0.00028249,30]
[323370898,1713936554168,-154.08119064,0.000149,2]
[323370899,1713936554188,-154.79876161,0.00015,2]
[323370926,1713936632422,-965.8266219,0.00015347,2]
[323370927,1713936632431,-238.93971122,0.00016,2]
[323370928,1713936632444,-173.29801428,0.00016335,2]
[323370929,1713936632452,-330.61259546,0.00016335,2]
[323370930,1713936632462,-190.61151072,0.00016335,2]
[323370932,1713936632471,-154.81422293,0.00016335,2]
[323370933,1713936632481,-300.0,0.00016435,2]
[323370934,1713936632491,-300.0,0.00016435,2]
[323370936,1713936632500,-469.0037595,0.00016436,2]
[323370937,1713936632509,-155.12377397,0.00016436,2]
[323370938,1713936632519,-810.8526174,0.00016436,2]
[323370939,1713936632528,-495.98187641,0.00016436,2]
[323370946,1713936638518,-504.72778301,0.00016436,2]
[323370947,1713936638528,-155.65870881,0.00016437,2]
[323370948,1713936638539,-2987.37780198,0.00016437,2]
[323370949,1713936638549,-532.57,0.00016438,2]
[323370950,1713936638561,-500.0,0.00016438,2]
[323370951,1713936638573,-500.0,0.00016438,2]
[323370952,1713936638585,-1382.88,0.00016438,2]
[323370953,1713936638594,-500.0,0.00016438,2]
[323370954,1713936638605,-500.0,0.00016438,2]
[323370955,1713936638615,-500.0,0.00016438,2]
[323370956,1713936638627,-500.0,0.00016438,2]
[323370957,1713936638638,-500.0,0.00016438,2]
[323370958,1713936638649,-500.0,0.00016438,2]
[323370959,1713936638660,-500.0,0.00016438,2]
[323370960,1713936638670,-500.0,0.00016438,2]
[323370961,1713936638679,-500.0,0.00016438,2]
[323370962,1713936638689,-500.0,0.00016438,2]
[323370963,1713936638699,-500.0,0.00016438,2]
[323370964,1713936638708,-500.0,0.00016438,2]
[323370965,1713936638718,-699.26,0.00016438,2]
[323370966,1713936638727,-468.98051265,0.00016438,2]
[323370967,1713936638736,-500.0,0.00016438,2]
[323370968,1713936638745,-502.0,0.00016438,2]
[323370969,1713936638755,-500.0,0.00016438,2]
[323370970,1713936638764,-500.0,0.00016438,2]
[323370971,1713936638773,-500.0,0.00016438,2]
[323370972,1713936638782,-500.0,0.00016438,2]
[323370973,1713936638791,-506.16176505,0.00016438,2]
[323370974,1713936638800,-500.0,0.00016438,2]
[323370975,1713936638809,-500.0,0.00016438,2]
[323370976,1713936638818,-2081.77,0.00016438,2]
[323370977,1713936638827,-500.0,0.00016438,2]
[323370978,1713936638837,-500.0,0.00016438,2]
[323370979,1713936638846,-940.31,0.00016438,2]
[323370980,1713936638855,-501.52756995,0.00016438,2]
[323370981,1713936638865,-500.0,0.00016438,2]
[323370982,1713936638875,-1112.36,0.00016438,2]
[323370983,1713936638885,-500.0,0.00016438,2]
[323370984,1713936638895,-500.0,0.00016438,2]
[323370985,1713936638904,-500.0,0.00016438,2]
[323370986,1713936638913,-500.0,0.00016438,2]
[323370987,1713936638922,-780.89,0.00016438,2]
[323370988,1713936638931,-500.0,0.00016438,2]
[323370989,1713936638941,-570.52982236,0.00016438,2]
[323370990,1713936638950,-1593.08,0.00016438,2]
[323370991,1713936638963,-786.34,0.00016438,2]
[323370992,1713936638973,-624.18,0.00016438,2]
[323370993,1713936638982,-616.97,0.00016438,2]
[323370994,1713936638991,-500.0,0.00016438,2]
[323370995,1713936639000,-500.0,0.00016438,2]
[323370996,1713936639010,-500.0,0.00016438,2]
[323370997,1713936639018,-500.0,0.00016438,2]
[323370998,1713936639027,-500.0,0.00016438,2]
[323370999,1713936639037,-81.27307631,0.00016438,2]
[323371044,1713936643631,-418.72692369,0.00016438,2]
[323371046,1713936643642,-0.13226208,0.00016438,2]
[323371106,1713936646501,-238.93971122,0.00016437,2]
[323371107,1713936646511,-645.47773792,0.00016438,2]
[323371108,1713936646521,-500.0,0.00016438,2]
[323371109,1713936646530,-502.33182257,0.00016438,2]
[323371110,1713936646540,-500.0,0.00016438,2]
[323371111,1713936646549,-1145.36,0.00016438,2]
[323371112,1713936646560,-500.0,0.00016438,2]
[323371113,1713936646569,-625.55,0.00016438,2]
[323371114,1713936646579,-500.0,0.00016438,2]
[323371115,1713936646589,-500.0,0.00016438,2]
[323371116,1713936646601,-682.2,0.00016438,2]
[323371117,1713936646611,-342.64072829,0.00016438,2]
[323371118,1713936646627,-157.35927171,0.00016438,2]
[323371119,1713936646637,-143.88284503,0.00016438,2]
[323371120,1713936660663,300.0,0.00014728,2]
[323371122,1713937639168,-391.12004775,0.00014628,2]
[323371123,1713937746100,-619.5786832,0.00014628,2]
[323371124,1713937751090,-240.24254357,0.00014628,2]
[323371125,1713937751111,-300.0,0.00014726,2]
[323371126,1713937751131,-15433.15458746,0.00014727,2]
[323371127,1713937762104,-4107.12491231,0.00014727,2]
[323371128,1713937768099,-7963.24362481,0.00014727,2]
[323371142,1713937832667,-300.0,0.00014726,2]
[323371143,1713937832677,-230.68111469,0.00014727,2]
[323371144,1713937832691,-24794.59313236,0.00014727,2]
[323371145,1713937832700,-4479.83685924,0.00014728,2]
[323371146,1713937832709,-238.93971122,0.00016198,2]
[323371147,1713937832717,-420.0,0.00016199,2]
[323371148,1713937832729,-417.0,0.00016298,2]
[323371149,1713937832742,-628.221272,0.0001642,2]
[323371150,1713937832755,-500.0,0.00016438,2]
[323371151,1713937832767,-500.0,0.00016438,2]
[323371154,1713937832781,-500.0,0.00016438,2]
[323371156,1713937832792,-500.0,0.00016438,2]
[323371158,1713937832803,-500.0,0.00016438,2]
[323371160,1713937832815,-500.0,0.00016438,2]
[323371162,1713937832827,-500.0,0.00016438,2]
[323371165,1713937832839,-500.0,0.00016438,2]
[323371167,1713937832852,-843.38,0.00016438,2]
[323371169,1713937832863,-500.0,0.00016438,2]
[323371172,1713937832877,-1165.01,0.00016438,2]
[323371174,1713937832888,-500.0,0.00016438,2]
[323371176,1713937832900,-569.74084052,0.00016438,2]
[323371178,1713937832910,-652.96,0.00016438,2]
[323371181,1713937832920,-500.0,0.00016438,2]
[323371183,1713937832932,-500.0,0.00016438,2]
[323371185,1713937832943,-500.0,0.00016438,2]
[323371187,1713937832954,-1620.41,0.00016438,2]
[323371189,1713937832966,-500.0,0.00016438,2]
[323371192,1713937832977,-500.0,0.00016438,2]
[323371194,1713937832988,-500.23811405,0.00016438,2]
[323371196,1713937833000,-500.0,0.00016438,2]
[323371198,1713937833012,-500.0,0.00016438,2]
[323371201,1713937833023,-500.0,0.00016438,2]
[323371203,1713937833033,-500.0,0.00016438,2]
[323371204,1713937833044,-721.99,0.00016438,2]
[323371205,1713937833057,-544.68739351,0.00016438,2]
[323371207,1713937833069,-500.0,0.00016438,2]
[323371209,1713937833080,-843.69,0.00016438,2]
[323371211,1713937833093,-500.0,0.00016438,2]
[323371212,1713937833104,-500.0,0.00016438,2]
[323371214,1713937833114,-503.30258881,0.00016438,2]
[323371216,1713937833125,-500.0,0.00016438,2]
[323371218,1713937833136,-636.56,0.00016438,2]
[323371220,1713937833149,-500.0,0.00016438,2]
[323371223,1713937833168,-500.0,0.00016438,2]
[323371225,1713937833179,-389.04537626,0.00016438,2]
[323371227,1713937833191,-500.0,0.00016438,2]
[323371229,1713937833204,-432.75212267,0.00016438,2]
[323371231,1713937833215,-151.36560727,0.00016438,2]
[323371232,1713937833228,-89.03448862,0.00016438,2]
[323371313,1713937838656,-150.0,0.00016298,2]
[323371315,1713937838666,-410.96551138,0.00016438,2]
[323371317,1713937838675,-500.0,0.00016438,2]
[323371319,1713937838683,-163.90450893,0.00016438,2]
[323371453,1713938711446,-500.0,0.00026554,30]
[323371454,1713938711470,-229.66097774,0.00026554,30]
[323371455,1713938711498,-585.48,0.00027397,30]
[323371456,1713938711521,-585.48,0.00027397,30]
[323371457,1713938711543,-585.48,0.00027397,30]
[323371458,1713938711565,-585.48,0.00027397,30]
[323371459,1713938711588,-585.48,0.00027397,30]
[323371460,1713938711612,-585.48,0.00027397,30]
[323371461,1713938711634,-585.48,0.00027397,30]
[323371462,1713938711659,-585.48,0.00027397,30]
[323371463,1713938711681,-585.48,0.00027397,30]
[323371464,1713938711704,-585.48,0.00027397,30]
[323371465,1713938711726,-585.48,0.00027397,30]
[323371466,1713938711748,-585.48,0.00027397,30]
[323371467,1713938711769,-585.48,0.00027397,30]
[323371468,1713938711792,-585.48,0.00027397,30]
[323371469,1713938711815,-585.48,0.00027397,30]
[323371470,1713938711837,-585.48,0.00027397,30]
[323371471,1713938711859,-585.48,0.00027397,30]
[323371472,1713938711880,-585.48,0.00027397,30]
[323371473,1713938711903,-585.48,0.00027397,30]
[323371474,1713938711925,-585.48,0.00027397,30]
[323371475,1713938711947,-585.48,0.00027397,30]
[323371476,1713938711971,-585.48,0.00027397,30]
[323371477,1713938711994,-585.48,0.00027397,30]
[323371478,1713938712019,-585.67506371,0.00027397,30]
[323371479,1713938712045,-160.0,0.00027849,30]
[323371480,1713938712068,-160.0,0.00027947,31]
[323371481,1713938712091,-20000.0,0.00028,120]
[323371482,1713938712113,-200.0,0.00028019,120]
[323371483,1713938712136,-160.0,0.00028045,32]
[323371484,1713938712161,-160.0,0.00028144,33]
[323371485,1713938712191,-20000.0,0.00029,120]
[323371486,1713938712216,-243.86714233,0.0003,30]
[323371487,1713938712238,-295.23742613,0.0003,120]
[323371488,1713938712262,-432.16334608,0.0003,30]
[323371489,1713938712284,-200.15099725,0.0003,30]
[323371490,1713938712307,-60000.0,0.0003,120]
[323371491,1713938712332,-167.162871,0.00030137,34]
[323371492,1713938712355,-167.162871,0.00030137,44]
[323371493,1713938712377,-167.162871,0.00030137,55]
[323371494,1713938712401,-167.162871,0.00030137,66]
[323371495,1713938712424,-167.162871,0.00030137,77]
[323371496,1713938712446,-167.162871,0.00030137,87]
[323371497,1713938712468,-167.162871,0.00030137,98]
[323371498,1713938712490,-167.162871,0.00030137,109]
[323371499,1713938712513,-167.162871,0.00030137,119]
[323371500,1713938712540,-200.0,0.00031201,120]
[323371501,1713938712564,-200.0,0.00031619,120]
[323371502,1713938712586,-200.0,0.00032286,120]
[323371503,1713938712613,-1229.35,0.00033,120]
[323371504,1713938712637,-200.0,0.00033115,120]
[323371505,1713938712662,-1396.93018251,0.00034,60]
[323371506,1713938712685,-200.0,0.00034674,120]
[323371507,1713938712708,-200.0,0.00034737,120]
[323371508,1713938712732,-200.0,0.00034853,120]
[323371509,1713938712755,-200.0,0.0003497,120]
[323371510,1713938712778,-77476.45902525,0.00035,30]
[323371511,1713938727766,-1206.43163887,0.00026724,30]
[323371512,1713938727814,-2412.86327774,0.0003237,120]
[323371513,1713938727845,-108825.13698314,0.00035,30]
[323371514,1713938727868,-362.96057121,0.00035,30]
[323371515,1713938727892,-186.29456644,0.00035,30]
[323371516,1713938727919,-200.0,0.00035478,120]
[323371517,1713938727943,-2075.985781,0.00035616,120]
[323371518,1713938727968,-200.0,0.00036445,120]
[323371519,1713938727992,-200.0,0.00036668,120]
[323371520,1713938728015,-200.0,0.00036913,120]
[323371521,1713938728038,-1102.0399561,0.0003707,31]
[323371522,1713938728062,-3000.0,0.000375,32]
[323371523,1713938728086,-3000.0,0.0003751,32]
[323371524,1713938728109,-3000.0,0.0003752,32]
[323371525,1713938728134,-3000.0,0.0003753,32]
[323371526,1713938728157,-3000.0,0.0003754,32]
[323371527,1713938728180,-3000.0,0.0003755,32]
[323371528,1713938728203,-3000.0,0.0003756,32]
[323371529,1713938728227,-3000.0,0.0003757,32]
[323371530,1713938728252,-3000.0,0.0003758,32]
[323371531,1713938728278,-3000.0,0.0003759,32]
[323371532,1713938728302,-3000.0,0.000376,32]
[323371533,1713938728327,-3000.0,0.0003761,32]
[323371534,1713938728352,-3000.0,0.0003762,32]
[323371535,1713938728375,-3000.0,0.0003763,32]
[323371536,1713938728398,-3000.0,0.0003764,32]
[323371537,1713938728425,-3000.0,0.0003765,32]
[323371538,1713938728448,-3000.0,0.0003766,32]
[323371539,1713938728470,-3000.0,0.0003767,32]
[323371540,1713938728493,-3000.0,0.0003768,32]
[323371541,1713938728517,-3000.0,0.0003769,32]
[323371542,1713938728540,-3000.0,0.000377,32]
[323371543,1713938728563,-3000.0,0.0003771,32]
[323371544,1713938728586,-3000.0,0.0003772,32]
[323371545,1713938728609,-3000.0,0.0003773,32]
[323371546,1713938728632,-3000.0,0.0003774,32]
[323371547,1713938728657,-3000.0,0.0003775,32]
[323371548,1713938728681,-3000.0,0.0003776,33]
[323371549,1713938728704,-2028.2872255,0.0003777,33]
[323371550,1713938737197,-4879.39334272,0.00034,60]
[323371551,1713938737232,-971.7127745,0.0003777,33]
[323371552,1713938737260,-3000.0,0.0003778,33]
[323371553,1713938737286,-3000.0,0.0003779,33]
[323371554,1713938737312,-3000.0,0.000378,33]
[323371555,1713938737337,-3000.0,0.0003781,33]
[323371556,1713938737363,-3000.0,0.0003782,33]
[323371557,1713938737387,-3000.0,0.0003783,33]
[323371558,1713938737414,-3000.0,0.0003784,33]
[323371559,1713938737441,-3000.0,0.0003785,33]
[323371560,1713938737466,-3000.0,0.0003786,33]
[323371561,1713938737490,-3000.0,0.0003787,33]
[323371562,1713938737515,-3000.0,0.0003788,33]
[323371563,1713938737539,-3000.0,0.0003789,33]
[323371564,1713938737565,-3000.0,0.000379,33]
[323371565,1713938737590,-3000.0,0.0003791,33]
[323371566,1713938737614,-3000.0,0.0003792,33]
[323371567,1713938737638,-5730.135399,0.0003793,33]
[323371568,1713938737665,-200.0,0.00038005,120]
[323371569,1713938737692,-200.0,0.00038112,120]
[323371570,1713938737715,-200.0,0.00038139,120]
[323371571,1713938737740,-200.0,0.00039314,120]